fUST/lending_fUST_20240302
["ID","MTS","AMOUNT","RATE_DAILY","PERIOD"]
[316126770,1709364635875,-814.8,0.00023897,2]
[316126771,1709364635887,-500.0,0.00023897,2]
[316126772,1709364635900,-500.0,0.00023995,2]
[316126773,1709364635912,-500.0,0.00023995,2]
[316126775,1709364635922,-500.0,0.00023995,2]
[316126777,1709364635932,-500.0,0.00023995,2]
[316126779,1709364635941,-427.60370629,0.00023995,2]
[316126782,1709364635951,-500.0,0.00023995,2]
[316126784,1709364635960,-500.0,0.00023995,2]
[316126786,1709364635970,-500.0,0.00023995,2]
[316126788,1709364635980,-500.0,0.00023995,2]
[316126790,1709364635991,-582.51,0.00023995,2]
[316126792,1709364636002,-635.39,0.00023995,2]
[316126794,1709364636013,-500.0,0.00023995,2]
[316126796,1709364636024,-199.93897482,0.00023995,2]
[316126799,1709364636034,-5333.92,0.00023995,2]
[316126801,1709364636045,-500.0,0.00023995,2]
[316126803,1709364636056,-500.0,0.00023995,2]
[316126805,1709364636067,-500.0,0.00023996,2]
[316126807,1709364636077,-500.0,0.00023996,2]
[316126809,1709364636087,-500.0,0.00023996,2]
[316126811,1709364636097,-500.0,0.00023996,2]
[316126813,1709364636108,-1479.38,0.00023996,2]
[316126815,1709364636119,-662.22,0.00023996,2]
[316126818,1709364636130,-641.42,0.00023996,2]
[316126820,1709364636141,-599.01,0.00023996,2]
[316126822,1709364636152,-2116.3,0.00023996,2]
[316126824,1709364636163,-610.24,0.00023996,2]
[316126825,1709364636175,-814.8,0.00023996,2]
[316126826,1709364636187,-500.0,0.00023996,2]
[316126827,1709364636198,-500.0,0.00023996,2]
[316126828,1709364636210,-155.00155002,0.00023997,2]
[316126829,1709364636220,-155.0697814,0.00023997,2]
[316126830,1709364636232,-514.31897555,0.00023997,2]
[316126831,1709364636244,-500.0,0.00023997,2]
[316126832,1709364636256,-500.0,0.00023997,2]
[316126833,1709364636267,-500.0,0.00023997,2]
[316126834,1709364636278,-500.0,0.00023997,2]
[316126835,1709364636289,-500.0,0.00023997,2]
[316126836,1709364636299,-500.0,0.00023997,2]
[316126837,1709364636310,-510.12599277,0.00023997,2]
[316126838,1709364636321,-500.0,0.00023997,2]
[316126839,1709364636333,-474.55024548,0.00023997,2]
[316126840,1709364636343,-500.0,0.00023997,2]
[316126841,1709364636354,-500.0,0.00023997,2]
[316126842,1709364636365,-500.0,0.00023997,2]
[316126843,1709364636376,-500.0,0.00023997,2]
[316126844,1709364636387,-582.51,0.00023997,2]
[316126845,1709364636400,-582.51,0.00023997,2]
[316126846,1709364636410,-635.39,0.00023997,2]
[316126847,1709364636421,-635.39,0.00023997,2]
[316126848,1709364636431,-500.0,0.00023997,2]
[316126849,1709364636442,-500.0,0.00023997,2]
[316126850,1709364636452,-500.0,0.00023997,2]
[316126851,1709364636463,-1479.38,0.00023997,2]
[316126852,1709364636473,-1479.38,0.00023997,2]
[316126853,1709364636602,-500.0,0.00023997,2]
[316126854,1709364636612,-500.0,0.00023997,2]
[316126855,1709364636621,-662.22,0.00023997,2]
[316126856,1709364636631,-662.22,0.00023997,2]
[316126857,1709364636641,-5333.92,0.00023997,2]
[316126858,1709364636651,-5333.92,0.00023997,2]
[316126859,1709364636660,-500.0,0.00023997,2]
[316126860,1709364636669,-500.0,0.00023997,2]
[316126861,1709364636678,-641.42,0.00023997,2]
[316126862,1709364636687,-641.42,0.00023997,2]
[316126863,1709364636696,-500.0,0.00023997,2]
[316126864,1709364636705,-200.69358182,0.00023997,2]
[316126865,1709364636714,-500.0,0.00023997,2]
[316126866,1709364636724,-500.0,0.00023997,2]
[316126867,1709364636734,-500.0,0.00023997,2]
[316126868,1709364636743,-500.0,0.00023997,2]
[316126869,1709364636752,-263.82361438,0.00023997,2]
[316126870,1709364636761,-500.0,0.00023997,2]
[316126871,1709364636770,-500.0,0.00023997,2]
[316126872,1709364636780,-342.3610885,0.00023997,2]
[316126873,1709364636789,-500.0,0.00023997,2]
[316126874,1709364636798,-500.0,0.00023997,2]
[316126875,1709364636807,-500.0,0.00023997,2]
[316126876,1709364636818,-162.39724044,0.00023997,2]
[316126877,1709364636828,-500.0,0.00023997,2]
[316126878,1709364636837,-500.0,0.00023997,2]
[316126879,1709364636846,-500.0,0.00023997,2]
[316126880,1709364636856,-500.0,0.00023997,2]
[316126881,1709364636866,-500.0,0.00023997,2]
[316126882,1709364636875,-500.0,0.00023997,2]
[316126883,1709364636884,-500.0,0.00023997,2]
[316126884,1709364636893,-500.0,0.00023997,2]
[316126885,1709364636902,-158.82040045,0.00023997,2]
[316126886,1709364636911,-502.67866658,0.00023997,2]
[316126887,1709364636920,-500.0,0.00023997,2]
[316126888,1709364636930,-500.0,0.00023997,2]
[316126889,1709364636939,-500.0,0.00023997,2]
[316126890,1709364636948,-500.0,0.00023997,2]
[316126891,1709364636957,-500.0,0.00023997,2]
[316126892,1709364636966,-500.0,0.00023997,2]
[316126893,1709364636975,-500.0,0.00023997,2]
[316126894,1709364636984,-500.0,0.00023997,2]
[316126895,1709364636994,-500.0,0.00023997,2]
[316126896,1709364637002,-500.0,0.00023997,2]
[316126897,1709364637011,-500.0,0.00023997,2]
[316126898,1709364637020,-568.94776397,0.00023997,2]
[316126899,1709364637030,-500.0,0.00023997,2]
[316126900,1709364637039,-650.0,0.00023997,2]
[316126901,1709364637048,-500.0,0.00023997,2]
[316126902,1709364637058,-500.0,0.00023997,2]
[316126903,1709364637067,-500.0,0.00023997,2]
[316126904,1709364637076,-500.0,0.00023997,2]
[316126905,1709364637085,-500.0,0.00023997,2]
[316126906,1709364637095,-500.0,0.00023997,2]
[316126907,1709364637104,-500.0,0.00023997,2]
[316126908,1709364637114,-500.0,0.00023997,2]
[316126909,1709364637124,-500.0,0.00023997,2]
[316126910,1709364637133,-500.0,0.00023997,2]
[316126911,1709364637143,-500.0,0.00023997,2]
[316126912,1709364637153,-500.0,0.00023997,2]
[316126913,1709364637167,-500.0,0.00023997,2]
[316126914,1709364637176,-500.0,0.00023997,2]
[316126915,1709364637187,-500.0,0.00023997,2]
[316126916,1709364637197,-500.0,0.00023997,2]
[316126917,1709364637208,-500.0,0.00023997,2]
[316126918,1709364637218,-500.0,0.00023997,2]
[316126919,1709364637227,-500.0,0.00023997,2]
[316126920,1709364637236,-500.0,0.00023997,2]
[316126921,1709364637245,-500.0,0.00023997,2]
[316126922,1709364637254,-500.0,0.00023997,2]
[316126923,1709364637263,-500.0,0.00023997,2]
[316126924,1709364637272,-500.0,0.00023997,2]
[316126925,1709364637281,-500.0,0.00023997,2]
[316126926,1709364637290,-500.0,0.00023997,2]
[316126927,1709364637299,-500.0,0.00023997,2]
[316126928,1709364637308,-500.0,0.00023997,2]
[316126929,1709364637318,-500.0,0.00023997,2]
[316126930,1709364637327,-500.0,0.00023997,2]
[316126931,1709364637336,-500.0,0.00023997,2]
[316126932,1709364637345,-500.0,0.00023997,2]
[316126933,1709364637354,-500.0,0.00023997,2]
[316126934,1709364637363,-500.0,0.00023997,2]
[316126935,1709364637372,-500.0,0.00023997,2]
[316126936,1709364637381,-500.0,0.00023997,2]
[316126937,1709364637390,-500.0,0.00023997,2]
[316126938,1709364637402,-500.0,0.00023997,2]
[316126939,1709364637411,-500.0,0.00023997,2]
[316126940,1709364637421,-500.0,0.00023997,2]
[316126941,1709364637431,-500.0,0.00023997,2]
[316126943,1709364637440,-500.0,0.00023997,2]
[316126944,1709364637449,-500.0,0.00023997,2]
[316126945,1709364637458,-500.0,0.00023997,2]
[316126946,1709364637467,-500.0,0.00023997,2]
[316126947,1709364637476,-500.0,0.00023997,2]
[316126948,1709364637485,-500.0,0.00023997,2]
[316126949,1709364637494,-500.0,0.00023997,2]
[316126950,1709364637503,-500.0,0.00023997,2]
[316126951,1709364637512,-500.0,0.00023997,2]
[316126953,1709364637522,-500.0,0.00023997,2]
[316126954,1709364637531,-500.0,0.00023997,2]
[316126956,1709364637540,-500.0,0.00023997,2]
[316126957,1709364637549,-500.0,0.00023997,2]
[316126958,1709364637558,-500.0,0.00023997,2]
[316126959,1709364637568,-500.0,0.00023997,2]
[316126960,1709364637577,-500.0,0.00023997,2]
[316126961,1709364637586,-500.0,0.00023997,2]
[316126962,1709364637595,-500.0,0.00023997,2]
[316126963,1709364637604,-500.0,0.00023997,2]
[316126964,1709364637613,-500.0,0.00023997,2]
[316126965,1709364637622,-500.0,0.00023997,2]
[316126966,1709364637631,-500.0,0.00023997,2]
[316126967,1709364637643,-500.0,0.00023997,2]
[316126969,1709364637653,-500.0,0.00023997,2]
[316126971,1709364637662,-500.0,0.00023997,2]
[316126973,1709364637671,-500.0,0.00023997,2]
[316126975,1709364637680,-500.0,0.00023997,2]
[316126977,1709364637689,-500.0,0.00023997,2]
[316126979,1709364637698,-500.0,0.00023997,2]
[316126981,1709364637707,-500.0,0.00023997,2]
[316126983,1709364637715,-500.0,0.00023997,2]
[316126985,1709364637725,-500.0,0.00023997,2]
[316126987,1709364637734,-500.0,0.00023997,2]
[316126989,1709364637744,-500.0,0.00023997,2]
[316126991,1709364637754,-500.0,0.00023997,2]
[316126993,1709364637766,-500.0,0.00023997,2]
[316126996,1709364637775,-500.0,0.00023997,2]
[316126998,1709364637784,-500.0,0.00023997,2]
[316127000,1709364637794,-500.0,0.00023997,2]
[316127002,1709364637803,-500.0,0.00023997,2]
[316127004,1709364637812,-233.64346376,0.00023997,2]
[316127006,1709364637822,-500.0,0.00023997,2]
[316127008,1709364637831,-500.0,0.00023997,2]
[316127010,1709364637840,-500.0,0.00023997,2]
[316127012,1709364637849,-500.0,0.00023997,2]
[316127014,1709364637857,-500.0,0.00023997,2]
[316127016,1709364637867,-500.0,0.00023997,2]
[316127017,1709364637876,-500.0,0.00023997,2]
[316127020,1709364637885,-500.0,0.00023997,2]
[316127021,1709364637896,-599.01,0.00023997,2]
[316127024,1709364637905,-599.01,0.00023997,2]
[316127026,1709364637914,-500.0,0.00023997,2]
[316127028,1709364637923,-500.0,0.00023997,2]
[316127030,1709364637932,-500.0,0.00023997,2]
[316127032,1709364637941,-300.0,0.00023997,2]
[316127034,1709364637950,-2116.3,0.00023997,2]
[316127036,1709364637959,-2116.3,0.00023997,2]
[316127038,1709364637968,-610.24,0.00023997,2]
[316127040,1709364637977,-610.24,0.00023997,2]
[316127042,1709364637987,-814.8,0.00023997,2]
[316127044,1709364637996,-814.8,0.00023997,2]
[316127046,1709364638006,-500.0,0.00023997,2]
[316127047,1709364638015,-633.76798451,0.00023997,2]
[316127050,1709364638025,-539.83101076,0.00023998,2]
[316127051,1709364638034,-929.85495771,0.00023998,2]
[316127054,1709364638044,-180.00477285,0.00023998,2]
[316127055,1709364638053,-155.13962566,0.00023998,2]
[316127057,1709364638062,-184.36863849,0.00023998,2]
[316127059,1709364638071,-156.15850147,0.00023998,2]
[316127061,1709364638080,-2117.88476154,0.00023998,2]
[316127063,1709364638090,-558.92126396,0.00023998,2]
[316127066,1709364638099,-2584.55261029,0.00023998,2]
[316127068,1709364638109,-155.0558201,0.00023998,2]
[316127070,1709364638118,-416.04811495,0.00023998,2]
[316127072,1709364638127,-155.40836172,0.00023998,2]
[316127074,1709364638136,-401.83058044,0.00023998,2]
[316127076,1709364638147,-180.09180806,0.00023998,2]
[316127078,1709364638157,-400.0,0.00023998,2]
[316127080,1709364638171,-15109.25875387,0.00023998,2]
[316127082,1709364638180,-179.72662285,0.00023998,2]
[316127084,1709364638189,-169.86907154,0.00023998,2]
[316127086,1709364638198,-161.99047563,0.00023998,2]
[316127088,1709364638209,-256.94707593,0.00023998,2]
[316127090,1709364638218,-155.15670828,0.00023998,2]
[316127092,1709364638227,-8382.93769081,0.00023998,2]
[316127094,1709364638237,-182.21287446,0.00023998,2]
[316127096,1709364638246,-185.81367766,0.00023998,2]
[316127098,1709364638255,-239.26958441,0.00023998,2]
[316127099,1709364638264,-206.75192354,0.00023998,2]
[316127101,1709364638273,-237.94459619,0.00023998,2]
[316127103,1709364638283,-159.96278637,0.00023998,2]
[316127106,1709364638292,-37613.12679155,0.00023998,2]
[316127114,1709364638358,-20411.05710098,0.00023998,2]
[316127115,1709364638368,-1472.4322427,0.00023998,2]
[316127117,1709364638377,-500.0,0.00023998,2]
[316127119,1709364638387,-518.24614328,0.00023998,2]
[316127121,1709364638398,-500.0,0.00023998,2]
[316127123,1709364638407,-500.0,0.00023998,2]
[316127125,1709364638416,-500.0,0.00023998,2]
[316127127,1709364638425,-500.0,0.00023998,2]
[316127129,1709364638434,-509.6697368,0.00023998,2]
[316127131,1709364638443,-582.51,0.00023998,2]
[316127133,1709364638452,-582.51,0.00023998,2]
[316127135,1709364638461,-582.51,0.00023998,2]
[316127137,1709364638470,-635.39,0.00023998,2]
[316127139,1709364638479,-635.39,0.00023998,2]
[316127141,1709364638489,-635.39,0.00023998,2]
[316127143,1709364638498,-500.0,0.00023998,2]
[316127145,1709364638507,-500.0,0.00023998,2]
[316127147,1709364638516,-500.0,0.00023998,2]
[316127149,1709364638525,-1479.38,0.00023998,2]
[316127151,1709364638534,-1479.38,0.00023998,2]
[316127153,1709364638543,-1479.38,0.00023998,2]
[316127155,1709364638552,-500.0,0.00023998,2]
[316127157,1709364638562,-500.0,0.00023998,2]
[316127159,1709364638571,-500.0,0.00023998,2]
[316127161,1709364638580,-662.22,0.00023998,2]
[316127163,1709364638589,-662.22,0.00023998,2]
[316127165,1709364638599,-662.22,0.00023998,2]
[316127167,1709364638608,-5333.92,0.00023998,2]
[316127169,1709364638617,-5333.92,0.00023998,2]
[316127171,1709364638626,-5333.92,0.00023998,2]
[316127173,1709364638635,-500.0,0.00023998,2]
[316127175,1709364638645,-500.0,0.00023998,2]
[316127177,1709364638654,-500.0,0.00023998,2]
[316127179,1709364638663,-641.42,0.00023998,2]
[316127181,1709364638673,-641.42,0.00023998,2]
[316127183,1709364638682,-641.42,0.00023998,2]
[316127185,1709364638691,-599.01,0.00023998,2]
[316127187,1709364638700,-599.01,0.00023998,2]
[316127189,1709364638709,-599.01,0.00023998,2]
[316127191,1709364638719,-2116.3,0.00023998,2]
[316127193,1709364638728,-2116.3,0.00023998,2]
[316127195,1709364638737,-2116.3,0.00023998,2]
[316127197,1709364638746,-610.24,0.00023998,2]
[316127199,1709364638755,-610.24,0.00023998,2]
[316127201,1709364638764,-610.24,0.00023998,2]
[316127203,1709364638774,-814.8,0.00023998,2]
[316127205,1709364638782,-814.8,0.00023998,2]
[316127207,1709364638791,-814.8,0.00023998,2]
[316127209,1709364638800,-500.0,0.00023999,2]
[316127211,1709364638809,-500.0,0.00023999,2]
[316127213,1709364638818,-500.0,0.00023999,2]
[316127215,1709364638827,-500.0,0.00023999,2]
[316127217,1709364638836,-500.0,0.00023999,2]
[316127228,1709364638925,-500.0,0.00023999,2]
[316127230,1709364638935,-635.10919078,0.00023999,2]
[316127232,1709364638946,-582.51,0.00023999,2]
[316127234,1709364638955,-582.51,0.00023999,2]
[316127236,1709364638964,-582.51,0.00023999,2]
[316127238,1709364638973,-582.51,0.00023999,2]
[316127240,1709364638982,-582.51,0.00023999,2]
[316127242,1709364638991,-582.51,0.00023999,2]
[316127244,1709364638999,-582.51,0.00023999,2]
[316127246,1709364639008,-582.51,0.00023999,2]
[316127248,1709364639017,-582.51,0.00023999,2]
[316127250,1709364639026,-582.51,0.00023999,2]
[316127252,1709364639036,-582.51,0.00023999,2]
[316127254,1709364639051,-582.51,0.00023999,2]
[316127256,1709364639060,-582.51,0.00023999,2]
[316127258,1709364639069,-582.51,0.00023999,2]
[316127260,1709364639078,-582.51,0.00023999,2]
[316127262,1709364639087,-582.74122032,0.00023999,2]
[316127264,1709364639096,-635.39,0.00023999,2]
[316127266,1709364639105,-635.39,0.00023999,2]
[316127268,1709364639114,-635.39,0.00023999,2]
[316127270,1709364639124,-635.39,0.00023999,2]
[316127272,1709364639133,-635.39,0.00023999,2]
[316127274,1709364639142,-635.39,0.00023999,2]
[316127276,1709364639152,-635.39,0.00023999,2]
[316127278,1709364639162,-635.39,0.00023999,2]
[316127280,1709364639173,-635.39,0.00023999,2]
[316127282,1709364639182,-635.39,0.00023999,2]
[316127284,1709364639192,-635.39,0.00023999,2]
[316127286,1709364639200,-635.39,0.00023999,2]
[316127288,1709364639211,-635.39,0.00023999,2]
[316127290,1709364639220,-635.39,0.00023999,2]
[316127292,1709364639229,-635.39,0.00023999,2]
[316127294,1709364639239,-635.40586974,0.00023999,2]
[316127296,1709364639247,-455.8583715,0.00023999,2]
[316127298,1709364639259,-1479.38,0.00023999,2]
[316127300,1709364639268,-1479.38,0.00023999,2]
[316127302,1709364639277,-1479.38,0.00023999,2]
[316127304,1709364639286,-1479.38,0.00023999,2]
[316127306,1709364639296,-1479.38,0.00023999,2]
[316127308,1709364639305,-1479.38,0.00023999,2]
[316127311,1709364639314,-1479.38,0.00023999,2]
[316127312,1709364639324,-1479.38,0.00023999,2]
[316127314,1709364639333,-1479.38,0.00023999,2]
[316127317,1709364639343,-1479.38,0.00023999,2]
[316127319,1709364639353,-1479.38,0.00023999,2]
[316127321,1709364639362,-1479.38,0.00023999,2]
[316127323,1709364639371,-1479.43435776,0.00023999,2]
[316127325,1709364639380,-426.54,0.00023999,2]
[316127326,1709364639389,-662.22,0.00023999,2]
[316127327,1709364639401,-662.22,0.00023999,2]
[316127329,1709364639410,-662.22,0.00023999,2]
[316127331,1709364639419,-662.22,0.00023999,2]
[316127333,1709364639428,-662.22,0.00023999,2]
[316127335,1709364639439,-662.22,0.00023999,2]
[316127337,1709364639448,-662.22,0.00023999,2]
[316127339,1709364639457,-662.22,0.00023999,2]
[316127341,1709364639466,-662.22,0.00023999,2]
[316127343,1709364639475,-662.22,0.00023999,2]
[316127345,1709364639484,-662.22,0.00023999,2]
[316127347,1709364639493,-662.22,0.00023999,2]
[316127349,1709364639502,-662.25620228,0.00023999,2]
[316127351,1709364639511,-5333.92,0.00023999,2]
[316127353,1709364639521,-5333.92,0.00023999,2]
[316127355,1709364639531,-5333.92,0.00023999,2]
[316127357,1709364639540,-5333.92,0.00023999,2]
[316127359,1709364639549,-5333.92,0.00023999,2]
[316127361,1709364639559,-5333.92,0.00023999,2]
[316127363,1709364639567,-5333.92,0.00023999,2]
[316127365,1709364639576,-5333.92,0.00023999,2]
[316127367,1709364639585,-5333.92,0.00023999,2]
[316127369,1709364639595,-5333.92,0.00023999,2]
[316127371,1709364639604,-5333.92,0.00023999,2]
[316127373,1709364639613,-5333.92,0.00023999,2]
[316127375,1709364639622,-5333.92,0.00023999,2]
[316127377,1709364639631,-5333.92,0.00023999,2]
[316127379,1709364639640,-5333.92,0.00023999,2]
[316127381,1709364639651,-5334.10622147,0.00023999,2]
[316127383,1709364639659,-500.0,0.00023999,2]
[316127385,1709364639668,-641.42,0.00023999,2]
[316127387,1709364639677,-641.42,0.00023999,2]
[316127389,1709364639686,-641.42,0.00023999,2]
[316127391,1709364639695,-641.42,0.00023999,2]
[316127393,1709364639704,-641.42,0.00023999,2]
[316127395,1709364639713,-641.42,0.00023999,2]
[316127397,1709364639722,-641.42,0.00023999,2]
[316127399,1709364639732,-641.42,0.00023999,2]
[316127401,1709364639741,-641.42,0.00023999,2]
[316127403,1709364639749,-641.42,0.00023999,2]
[316127405,1709364639759,-641.42,0.00023999,2]
[316127407,1709364639768,-641.42,0.00023999,2]
[316127409,1709364639777,-641.52969469,0.00023999,2]
[316127411,1709364639786,-599.01,0.00023999,2]
[316127413,1709364639795,-599.01,0.00023999,2]
[316127415,1709364639804,-599.01,0.00023999,2]
[316127417,1709364639813,-599.01,0.00023999,2]
[316127419,1709364639822,-599.01,0.00023999,2]
[316127421,1709364639831,-599.01,0.00023999,2]
[316127423,1709364639840,-599.01,0.00023999,2]
[316127425,1709364639849,-599.01,0.00023999,2]
[316127427,1709364639858,-599.01,0.00023999,2]
[316127429,1709364639866,-599.01,0.00023999,2]
[316127431,1709364639875,-599.01,0.00023999,2]
[316127433,1709364639884,-599.01,0.00023999,2]
[316127435,1709364639895,-599.10267906,0.00023999,2]
[316127437,1709364639903,-2116.3,0.00023999,2]
[316127439,1709364639913,-2116.3,0.00023999,2]
[316127441,1709364639922,-2116.3,0.00023999,2]
[316127443,1709364639931,-2116.3,0.00023999,2]
[316127445,1709364639940,-2116.3,0.00023999,2]
[316127447,1709364639949,-2116.3,0.00023999,2]
[316127449,1709364639959,-2116.3,0.00023999,2]
[316127451,1709364639968,-2116.3,0.00023999,2]
[316127453,1709364639977,-2116.3,0.00023999,2]
[316127455,1709364639986,-2116.3,0.00023999,2]
[316127457,1709364639995,-2116.3,0.00023999,2]
[316127459,1709364640005,-2116.3,0.00023999,2]
[316127461,1709364640017,-2116.51755351,0.00023999,2]
[316127463,1709364640026,-610.24,0.00023999,2]
[316127465,1709364640035,-610.24,0.00023999,2]
[316127467,1709364640044,-610.24,0.00023999,2]
[316127469,1709364640053,-610.24,0.00023999,2]
[316127471,1709364640063,-610.24,0.00023999,2]
[316127473,1709364640072,-610.24,0.00023999,2]
[316127475,1709364640081,-610.24,0.00023999,2]
[316127477,1709364640090,-610.24,0.00023999,2]
[316127479,1709364640099,-610.24,0.00023999,2]
[316127481,1709364640109,-610.24,0.00023999,2]
[316127483,1709364640118,-610.24,0.00023999,2]
[316127485,1709364640127,-610.24,0.00023999,2]
[316127486,1709364640136,-610.44264965,0.00023999,2]
[316127488,1709364640145,-814.8,0.00023999,2]
[316127490,1709364640154,-814.8,0.00023999,2]
[316127492,1709364640168,-814.8,0.00023999,2]
[316127494,1709364640177,-814.8,0.00023999,2]
[316127496,1709364640185,-814.8,0.00023999,2]
[316127498,1709364640195,-814.8,0.00023999,2]
[316127500,1709364640204,-814.8,0.00023999,2]
[316127502,1709364640214,-814.8,0.00023999,2]
[316127504,1709364640223,-814.8,0.00023999,2]
[316127506,1709364640232,-814.8,0.00023999,2]
[316127508,1709364640241,-814.8,0.00023999,2]
[316127510,1709364640250,-814.8,0.00023999,2]
[316127512,1709364640262,-814.92668158,0.00023999,2]
[316127514,1709364640271,-930566.8037059,0.00024,5]
[316127516,1709364640286,-106485.35876275,0.00024,5]
[316127533,1709364640787,-1333.99188081,0.00024,5]
[316127630,1709364643463,-217.28,0.0002399,3]
[316127632,1709364643472,-2449.582828,0.00024,5]
[316127708,1709364695179,217.41343119,0.00018682,2]
[316127768,1709365834366,-155.00155002,0.00018884,2]
[316127769,1709365834376,-1634.92402933,0.00018884,2]
[316127770,1709365834385,-480.72620329,0.00018885,2]
[316127771,1709365834394,-623.51457939,0.00018886,2]
[316127772,1709365834403,-1751.05464666,0.00018886,2]
[316127773,1709365834420,-6260.04727197,0.00018886,2]
[316127774,1709365834429,-300.0,0.00018892,2]
[316127775,1709365834439,-961.64954614,0.000189,2]
[316127776,1709365834449,-166.666666,0.00019881,2]
[316127777,1709365834458,-183.552779,0.00020034,2]
[316127778,1709365834468,-4875.4781659,0.00020109,2]
[316127779,1709365834477,-466.66441698,0.00020254,2]
[316127780,1709365834486,-165.138624,0.00020354,2]
[316127781,1709365834496,-250.0,0.00020427,2]
[316127782,1709365834509,-265.83405327,0.00020447,2]
[316127783,1709365834518,-500.0,0.0002124,2]
[316127784,1709365834527,-500.0,0.0002124,2]
[316127785,1709365834537,-327.2251864,0.00022,2]
[316127786,1709365834547,-157.1486779,0.00022063,2]
[316127787,1709365834556,-604.19519199,0.00022065,4]
[316127788,1709365834565,-1454.23642169,0.00022073,4]
[316127789,1709365834574,-525.0,0.00022094,2]
[316127790,1709365834583,-592.77555203,0.00022094,2]
[316127791,1709365834593,-436.38777602,0.00022094,2]
[316127792,1709365834602,-3496.17947004,0.00022094,2]
[316127793,1709365834611,-500.0,0.00022589,2]
[316127794,1709365834620,-1030.07,0.00022589,2]
[316127795,1709365834629,-500.0,0.00022589,2]
[316127796,1709365834639,-501.81946577,0.00022589,2]
[316127797,1709365834648,-8235.44669183,0.0002259,2]
[316127798,1709365834658,-500.0,0.00022999,2]
[316127799,1709365834667,-500.0,0.00022999,2]
[316127800,1709365834676,-500.0,0.00022999,2]
[316127801,1709365834686,-500.0,0.00022999,2]
[316127802,1709365834695,-500.0,0.00022999,2]
[316127803,1709365834705,-500.91745641,0.00022999,2]
[316127804,1709365834714,-500.0,0.00022999,2]
[316127805,1709365834724,-431.86055815,0.00022999,2]
[316127806,1709365834733,-500.0,0.00022999,2]
[316127807,1709365834742,-500.0,0.00022999,2]
[316127808,1709365834751,-500.0,0.00022999,2]
[316127809,1709365834761,-500.0,0.00022999,2]
[316127810,1709365834770,-564.2263334,0.00022999,2]
[316127811,1709365834779,-500.0,0.00022999,2]
[316127812,1709365834788,-524.0,0.00023,2]
[316127813,1709365834798,-153.0,0.00023178,2]
[316127814,1709365834809,-306.0,0.00023178,2]
[316127815,1709365834818,-200.7312975,0.00023178,2]
[316127816,1709365834828,-530.62466616,0.000235,3]
[316127817,1709365834837,-1000.0,0.00023649,5]
[316127818,1709365834846,-961.64954614,0.000239,2]
[316127819,1709365834855,-181.06,0.00023989,3]
[316127820,1709365834865,-239.49,0.0002399,3]
[316127821,1709365834874,-718.47,0.0002399,3]
[316127822,1709365834884,-429.72214261,0.00023998,2]
[316127823,1709365834894,-214.12256328,0.00023998,2]
[316127824,1709365834903,-1592.56843785,0.00023998,2]
[316127825,1709365834913,-290.04112182,0.00023998,2]
[316127826,1709365834922,-430.24277415,0.00023998,2]
[316127827,1709365834932,-744.52927298,0.00023998,2]